fUST/lending_fUST_20251204
["ID","MTS","AMOUNT","RATE_DAILY","PERIOD"]
[396207738,1764805846535,-184.5,0.00019396,2]
[396207741,1764805846544,-151.0,0.000194,2]
[396207743,1764805846555,-1060.0,0.0001941,2]
[396207744,1764805846565,-500.0,0.00019429,2]
[396207746,1764805846577,-500000.0,0.00019503,2]
[396207749,1764805846586,-600.0,0.00019561,2]
[396207751,1764805846596,-176.70138331,0.00019589,2]
[396207752,1764805846606,-168.0,0.0001961,2]
[396207754,1764805846615,-5000.0,0.00019651,2]
[396207756,1764805846625,-528318.63852319,0.000197,2]
[396207785,1764805846898,-217.828,0.00016033,2]
[396207787,1764805846908,-1987.87049881,0.00019595,7]
[396207790,1764805846935,-516.13151662,0.00019595,7]
[396207792,1764805846946,-5231.23765986,0.000197,2]
[396207821,1764805847215,-1591.04300781,0.000197,2]
[396207829,1764805847286,-449931.59803685,0.000197,2]
[396207831,1764805847296,-560.97226321,0.000197,2]
[396207833,1764805847306,-151.0,0.000197,2]
[396207835,1764805847316,-151.0,0.000197,2]
[396207837,1764805847326,-151.0,0.000197,2]
[396207839,1764805847336,-151.0,0.000197,2]
[396207841,1764805847346,-244.865796,0.000197,2]
[396207843,1764805847356,-445.832226,0.000197,2]
[396207845,1764805847366,-244.865796,0.000197,2]
[396207847,1764805847376,-445.832226,0.000197,2]
[396207849,1764805847386,-244.865796,0.000197,2]
[396207851,1764805847395,-445.832226,0.000197,2]
[396207853,1764805847407,-244.865796,0.000197,2]
[396207855,1764805847417,-111.23093585,0.000197,2]
[396207859,1764805847443,-295.13886484,0.000197,2]
[396209143,1764805876525,568.7313518,0.0003287,120]
[396209144,1764805910388,1270.65226942,0.00032876,120]
[396209145,1764805935329,200000.0,0.00032877,120]
[396209146,1764805943831,1000.0,0.00032876,120]
[396209147,1764806044072,250.0,0.0002,30]
[396209148,1764806044642,10544.0,0.00032876,120]
[396209151,1764806534933,1000.0,0.00032876,120]
[396209152,1764806557471,1000.0,0.00032876,120]
[396209153,1764806622312,414.491067,0.00030137,120]
[396209154,1764806658794,310.0,0.00032877,120]
[396209155,1764806689885,1044.4550527,0.0003267,120]
[396209156,1764806852275,500.0,0.00032877,120]
[396209157,1764806861818,500.0,0.00032876,120]
[396209166,1764806918003,263.6,0.00032877,120]
[396209167,1764806931140,3000.0,0.00032876,120]
[396209168,1764807002663,250.0,0.0002,30]
[396209169,1764807002786,10544.0,0.00032876,120]
[396209263,1764807032497,-361.51,0.00011988,2]
[396209265,1764807032507,-361.51,0.00011988,2]
[396209267,1764807032516,-248.0,0.00011988,2]
[396209269,1764807032526,-35.51,0.00012328,2]
[396209271,1764807032537,-264.49,0.00012328,2]
[396209273,1764807032546,-1200.0,0.00012328,2]
[396209276,1764807032556,-150.0,0.00012328,2]
[396209278,1764807032565,-3352.28,0.00012329,2]
[396209279,1764807032578,-2793.57,0.00012329,2]
[396209281,1764807032588,-2327.97,0.00012329,2]
[396209283,1764807032597,-151.0,0.0001283,2]
[396209285,1764807032606,-151.0,0.0001283,2]
[396209287,1764807032616,-500.0,0.00012835,2]
[396209290,1764807032626,-288.18807352,0.00012835,2]
[396209292,1764807032636,-500.0,0.00012835,2]
[396209294,1764807032645,-500.0,0.00012835,2]
[396209296,1764807032655,-905.50787426,0.00012836,2]
[396209298,1764807032664,-905.50787426,0.00012836,2]
[396209300,1764807032673,-905.50787426,0.00012836,2]
[396209302,1764807032682,-905.50787426,0.00012836,2]
[396209304,1764807032691,-905.50787426,0.00012836,2]
[396209306,1764807032700,-905.50787426,0.00012836,2]
[396209308,1764807032709,-905.50787426,0.00012836,2]
[396209310,1764807032718,-905.50787426,0.00012836,2]
[396209312,1764807032727,-905.50787426,0.00012836,2]
[396209313,1764807032737,-905.50787426,0.00012836,2]
[396209315,1764807032747,-905.50787426,0.00012836,2]
[396209318,1764807032756,-3833.51948613,0.00012836,2]
[396209320,1764807032766,-3833.51948613,0.00012836,2]
[396209322,1764807032775,-3833.51948613,0.00012836,2]
[396209324,1764807032784,-3833.51948613,0.00012836,2]
[396209326,1764807032793,-3833.51948613,0.00012836,2]
[396209328,1764807032801,-3833.51948613,0.00012836,2]
[396209330,1764807032811,-3833.51948613,0.00012836,2]
[396209332,1764807032819,-3833.51948613,0.00012836,2]
[396209334,1764807032829,-3833.51948613,0.00012836,2]
[396209336,1764807032838,-3833.51948613,0.00012836,2]
[396209338,1764807032847,-3833.51948613,0.00012836,2]
[396209339,1764807032856,-3833.51948613,0.00012836,2]
[396209342,1764807032866,-3833.51948613,0.00012836,2]
[396209344,1764807032875,-3833.51948613,0.00012836,2]
[396209346,1764807032884,-3833.51948613,0.00012836,2]
[396209348,1764807032893,-3833.51948613,0.00012836,2]
[396209350,1764807032903,-3833.51948613,0.00012836,2]
[396209352,1764807032913,-3833.51948613,0.00012836,2]
[396209354,1764807032923,-3833.51948613,0.00012836,2]
[396209355,1764807032932,-3833.51948613,0.00012836,2]
[396209358,1764807032941,-3833.51948613,0.00012836,2]
[396209360,1764807032950,-3833.51948613,0.00012836,2]
[396209362,1764807032960,-3833.51948613,0.00012836,2]
[396209364,1764807032970,-3833.51948613,0.00012836,2]
[396209366,1764807032979,-893.82390168,0.00012836,2]
[396209368,1764807032989,-893.82390168,0.00012836,2]
[396209370,1764807032998,-893.82390168,0.00012836,2]
[396209372,1764807033007,-893.82390168,0.00012836,2]
[396209374,1764807033016,-893.82390168,0.00012836,2]
[396209376,1764807033025,-893.82390168,0.00012836,2]
[396209378,1764807033034,-893.82390168,0.00012836,2]
[396209380,1764807033044,-893.82390168,0.00012836,2]
[396209382,1764807033054,-893.82390168,0.00012836,2]
[396209384,1764807033063,-893.82390168,0.00012836,2]
[396209386,1764807033072,-893.82390168,0.00012836,2]
[396209388,1764807033081,-893.82390168,0.00012836,2]
[396209390,1764807033091,-893.82390168,0.00012836,2]
[396209392,1764807033100,-893.82390168,0.00012836,2]
[396209394,1764807033110,-893.82390168,0.00012836,2]
[396209396,1764807033118,-893.82390168,0.00012836,2]
[396209398,1764807033127,-893.82390168,0.00012836,2]
[396209400,1764807033137,-893.82390168,0.00012836,2]
[396209402,1764807033146,-893.82390168,0.00012836,2]
[396209404,1764807033155,-893.82390168,0.00012836,2]
[396209406,1764807033164,-893.82390168,0.00012836,2]
[396209408,1764807033174,-893.82390168,0.00012836,2]
[396209410,1764807033183,-893.82390168,0.00012836,2]
[396209412,1764807033194,-893.82390168,0.00012836,2]
[396209414,1764807033203,-893.82390168,0.00012836,2]
[396209416,1764807033213,-893.82390168,0.00012836,2]
[396209418,1764807033222,-893.82390168,0.00012836,2]
[396209420,1764807033231,-893.82390168,0.00012836,2]
[396209421,1764807033241,-893.82390168,0.00012836,2]
[396209422,1764807033251,-893.82390168,0.00012836,2]
[396209423,1764807033260,-893.82390168,0.00012836,2]
[396209424,1764807033270,-3860.14114921,0.00012836,2]
[396209425,1764807033280,-3860.14114921,0.00012836,2]
[396209426,1764807033289,-3860.14114921,0.00012836,2]
[396209427,1764807033298,-3860.14114921,0.00012836,2]
[396209428,1764807033307,-3860.14114921,0.00012836,2]
[396209429,1764807033316,-3860.14114921,0.00012836,2]
[396209430,1764807033325,-3860.14114921,0.00012836,2]
[396209431,1764807033335,-3860.14114918,0.00012836,2]
[396209432,1764807033345,-500.0,0.00012845,2]
[396209433,1764807033354,-7107.71412615,0.00013,2]
[396209434,1764807033363,-300.0,0.00013101,2]
[396209435,1764807033373,-300.0,0.00013101,2]
[396209436,1764807033384,-300.0,0.00013101,2]
[396209437,1764807033394,-300.0,0.00013101,2]
[396209438,1764807033403,-300.0,0.00013101,2]
[396209439,1764807033413,-300.0,0.00013101,2]
[396209440,1764807033423,-300.0,0.00013101,2]
[396209441,1764807033433,-300.0,0.00013101,2]
[396209442,1764807033443,-300.0,0.00013101,2]
[396209443,1764807033452,-300.0,0.00013101,2]
[396209444,1764807033461,-300.0,0.00013101,2]
[396209445,1764807033470,-300.0,0.00013101,2]
[396209446,1764807033480,-300.0,0.00013101,2]
[396209447,1764807033489,-300.0,0.00013101,2]
[396209448,1764807033499,-300.0,0.00013101,2]
[396209449,1764807033508,-600.0,0.00013101,2]
[396209450,1764807033518,-500.0,0.00013119,2]
[396209451,1764807033527,-49734.37007478,0.00013178,2]
[396209452,1764807033536,-500.0,0.00013273,2]
[396209453,1764807033545,-500.0,0.00013273,2]
[396209454,1764807033555,-500.0,0.00013273,2]
[396209455,1764807033564,-512.47457159,0.00013273,2]
[396209456,1764807033575,-164.95465428,0.00013273,2]
[396209457,1764807033828,-500.0,0.00013273,2]
[396209458,1764807033847,-500.0,0.00013273,2]
[396209459,1764807033856,-500.0,0.00013273,2]
[396209460,1764807033865,-500.0,0.00013273,2]
[396209461,1764807033875,-500.0,0.00013273,2]
[396209462,1764807033884,-500.0,0.00013273,2]
[396209463,1764807033893,-500.0,0.00013273,2]
[396209464,1764807033903,-500.0,0.00013273,2]
[396209465,1764807033912,-500.0,0.00013273,2]
[396209466,1764807033920,-500.0,0.00013273,2]
[396209467,1764807033929,-500.0,0.00013273,2]
[396209468,1764807033938,-345.68770136,0.00013273,2]
[396209469,1764807033948,-500.0,0.00013273,2]
[396209470,1764807033957,-500.0,0.00013273,2]
[396209471,1764807033966,-500.0,0.00013273,2]
[396209472,1764807033975,-506.01992005,0.00013273,2]
[396209473,1764807033985,-216.29947506,0.00013273,2]
[396209474,1764807033994,-500.0,0.00013273,2]
[396209475,1764807034003,-500.0,0.00013273,2]
[396209476,1764807034012,-478.39080992,0.00013273,2]
[396209477,1764807034022,-158.35138718,0.00013273,2]
[396209478,1764807034031,-500.0,0.00013273,2]
[396209479,1764807034041,-500.0,0.00013273,2]
[396209480,1764807034050,-282.37669027,0.00013273,2]
[396209481,1764807034060,-500.0,0.00013273,2]
[396209482,1764807034069,-500.0,0.00013273,2]
[396209483,1764807034079,-500.0,0.00013273,2]
[396209484,1764807034088,-500.0,0.00013273,2]
[396209485,1764807034097,-500.08631227,0.00013273,2]
[396209486,1764807034106,-500.0,0.00013273,2]
[396209487,1764807034115,-209.93147691,0.00013273,2]
[396209488,1764807034124,-500.0,0.00013273,2]
[396209489,1764807034133,-500.0,0.00013273,2]
[396209490,1764807034143,-500.11182685,0.00013273,2]
[396209491,1764807034152,-500.0,0.00013273,2]
[396209492,1764807034161,-500.0,0.00013273,2]
[396209493,1764807034172,-500.0,0.00013273,2]
[396209494,1764807034181,-500.10888673,0.00013273,2]
[396209495,1764807034190,-500.0,0.00013273,2]
[396209496,1764807034199,-267.7769347,0.00013273,2]
[396209497,1764807034208,-325.29725482,0.00013273,2]
[396209498,1764807034218,-264.13273303,0.00013273,2]
[396209499,1764807034227,-500.1226183,0.00013273,2]
[396209500,1764807034236,-500.0,0.00013273,2]
[396209501,1764807034245,-500.0,0.00013273,2]
[396209502,1764807034254,-500.0,0.00013273,2]
[396209503,1764807034263,-500.0,0.00013273,2]
[396209504,1764807034273,-500.0,0.00013273,2]
[396209505,1764807034283,-500.0,0.00013393,2]
[396209506,1764807034292,-420.0,0.00013529,2]
[396209507,1764807034301,-1680.0,0.00013561,2]
[396209508,1764807034311,-500.0,0.00013667,2]
[396209509,1764807034320,-300.0,0.00013673,2]
[396209510,1764807034329,-500.0,0.00013698,2]
[396209511,1764807034338,-507.78909161,0.00013698,2]
[396209512,1764807034347,-500.0,0.00013698,2]
[396209513,1764807034356,-500.5885547,0.00013698,2]
[396209514,1764807034366,-554.14,0.00013698,2]
[396209515,1764807034375,-500.0,0.00013698,2]
[396209516,1764807034385,-500.0,0.00013698,2]
[396209517,1764807034394,-500.0,0.00013698,2]
[396209518,1764807034404,-500.0,0.00013698,2]
[396209519,1764807034413,-500.0,0.00013698,2]
[396209520,1764807034423,-26124.3893917,0.00013699,2]
[396209521,1764807034432,-17300.7918793,0.00013699,2]
[396209522,1764807034441,-1000.0,0.00013699,2]
[396209523,1764807034451,-500.0,0.00013699,2]
[396209524,1764807034460,-500.0,0.00013699,2]
[396209525,1764807034472,-500.0,0.00013699,2]
[396209526,1764807034482,-1000.0,0.00013699,2]
[396209527,1764807034493,-1000.0,0.00013699,2]
[396209528,1764807034502,-690.2936,0.00013699,2]
[396209529,1764807034512,-150.0,0.00013742,2]
[396209530,1764807034523,-363.41803385,0.00013821,2]
[396209531,1764807034531,-500.0,0.00013941,2]
[396209532,1764807034540,-500.0,0.00014115,2]
[396209533,1764807034548,-169.58,0.00014115,2]
[396209534,1764807034559,-169.58,0.00014115,2]
[396209535,1764807034569,-169.58,0.00014115,2]
[396209536,1764807034582,-169.58,0.00014115,2]
[396209537,1764807034591,-169.58,0.00014115,2]
[396209538,1764807034602,-169.58,0.00014115,2]
[396209539,1764807034612,-169.55,0.00014115,2]
[396209540,1764807034621,-1112.77522964,0.00014177,2]
[396209541,1764807034631,-500.0,0.00014215,2]
[396209542,1764807034640,-1000.0,0.00014247,2]
[396209543,1764807034649,-273.6354666,0.00014247,2]
[396209544,1764807034658,-1000.0,0.00014247,2]
[396209545,1764807034667,-177.0,0.00014328,2]
[396209546,1764807034676,-1112.77522964,0.00014352,2]
[396209547,1764807034684,-720.0,0.00014411,2]
[396209548,1764807034695,-500.0,0.00014489,2]
[396209549,1764807034704,-1112.77522964,0.00014528,2]
[396209550,1764807034713,-1112.77522964,0.00014703,2]
[396209551,1764807034722,-332.54776303,0.00014713,2]
[396209552,1764807034731,-8566.33875822,0.00014736,2]
[396209553,1764807034740,-500.0,0.00014763,2]
[396209554,1764807034749,-500.0,0.0001477,2]
[396209555,1764807034759,-1129.11045459,0.00014795,2]
[396209556,1764807034768,-1500.0,0.00014795,2]
[396209557,1764807034777,-587.0,0.00014847,2]
[396209558,1764807034786,-815.76722096,0.00014857,2]
[396209559,1764807034797,-1112.77522964,0.00014878,2]
[396209560,1764807034807,-2351.0,0.00014917,2]
[396209561,1764807034815,-500.0,0.00015037,2]
[396209562,1764807034824,-1112.77522964,0.00015053,2]
[396209563,1764807034833,-260.866498,0.00015068,2]
[396209564,1764807034844,-1112.77522964,0.00015228,2]
[396209565,1764807034853,-483.90504854,0.00015311,2]
[396209566,1764807034862,-2000.0,0.00015342,2]
[396209567,1764807034871,-1112.77522964,0.00015403,2]
[396209568,1764807034880,-500.0,0.00015533,2]
[396209569,1764807034889,-1112.77522964,0.00015578,2]
[396209570,1764807034898,-1113.88800487,0.00015753,2]
[396209571,1764807034908,-864.0,0.00015852,2]
[396209572,1764807034917,-500.0,0.0001589,2]
[396209573,1764807034928,-2500.0,0.0001589,2]
[396209574,1764807034939,-999.0,0.00016,2]
[396209575,1764807034950,-250.0,0.00016033,2]
[396209576,1764807034959,-237.308,0.00016033,2]
[396209577,1764807034968,-204.0,0.00016328,2]
[396209578,1764807034977,-500.0,0.00016372,2]
[396209579,1764807034987,-500.0,0.00016406,2]
[396209580,1764807034996,-1487.0,0.00016408,2]
[396209581,1764807035006,-3000.0,0.00016438,2]
[396209582,1764807035015,-250.0,0.00016479,2]
[396209583,1764807035024,-500.0,0.00016491,2]
[396209584,1764807035033,-160.0,0.0001655,2]
[396209585,1764807035042,-500.0,0.00016576,2]
[396209586,1764807035051,-258.008,0.00016589,2]
[396209587,1764807035060,-179.102,0.00016589,2]
[396209588,1764807035070,-266.014,0.00016589,2]
[396209589,1764807035079,-990.0,0.00016589,2]
[396209590,1764807035088,-2153.0,0.00016589,2]
[396209591,1764807035097,-630.0,0.00016589,2]
[396209592,1764807035107,-399.08732633,0.00016782,2]
[396209593,1764807035117,-160.0,0.00016782,2]
[396209594,1764807035126,-500.0,0.00016922,2]
[396209595,1764807035135,-500.0,0.00016986,2]
[396209596,1764807035145,-1542.91324053,0.00016986,2]
[396209597,1764807035615,-270.59099808,0.00016986,2]
[396209598,1764807035752,-161.86402956,0.00016986,2]
[396209599,1764807035763,-1524.63173183,0.00016986,2]
[396209600,1764807035772,-500.0,0.00017064,2]
[396209601,1764807035781,-260.0,0.00017098,2]
[396209602,1764807035790,-190.0,0.00017148,2]
[396209603,1764807035803,-500.0,0.00017427,2]
[396209604,1764807035812,-1000.0,0.00017437,2]
[396209605,1764807035822,-4000.0,0.00017534,2]
[396209606,1764807035836,-360.0,0.00017646,2]
[396209607,1764807035845,-399.08732633,0.000178,3]
[396209608,1764807035855,-21926.49,0.000178,3]
[396209609,1764807035864,-500.0,0.00017865,2]
[396209610,1764807035873,-948.0,0.00018,2]
[396209611,1764807035887,-500.0,0.00018081,2]
[396209612,1764807035899,-3000.0,0.00018082,7]
[396209613,1764807035910,-2900.13613808,0.00018082,2]
[396209614,1764807035921,-460.0,0.00018194,2]
[396209615,1764807035931,-500.0,0.00018296,2]
[396209616,1764807035941,-231.0,0.00018328,2]
[396209617,1764807035950,-260.866498,0.00018493,2]
[396209618,1764807035961,-500.0,0.00018521,2]
[396209619,1764807035971,-500.0,0.00018566,2]
[396209620,1764807035980,-151.0,0.00018714,2]
[396209621,1764807035989,-306.18395992,0.00018714,2]
[396209622,1764807035999,-500.0,0.00018714,2]
[396209623,1764807036008,-500.0,0.00018714,2]
[396209624,1764807036018,-500.0,0.00018714,2]
[396209625,1764807036027,-500.0,0.00018714,2]
[396209626,1764807036037,-500.0,0.00018714,2]
[396209627,1764807036047,-1000.0,0.00018714,2]
[396209628,1764807036057,-1000.0,0.00018714,2]
[396209629,1764807036067,-1000.0,0.00018714,2]
[396209630,1764807036076,-1000.0,0.00018714,2]
[396209631,1764807036085,-1000.0,0.00018714,2]
[396209632,1764807036095,-1000.0,0.00018714,2]
[396209633,1764807036106,-1000.0,0.00018714,2]
[396209634,1764807036117,-1000.0,0.00018714,2]
[396209635,1764807036128,-1000.0,0.00018714,2]
[396209636,1764807036137,-1000.0,0.00018714,2]
[396209637,1764807036146,-1000.0,0.00018714,2]
[396209638,1764807036156,-523.81517627,0.00018714,2]
[396209664,1764807038116,-500.0,0.00012835,2]
[396209665,1764807038126,-500.0,0.00012835,2]
[396209666,1764807038138,-614.07794106,0.00012835,2]
[396209667,1764807038148,-298.61896232,0.00012835,2]
[396209668,1764807038164,-201.38103768,0.00012835,2]
[396209669,1764807038174,-233.7502076,0.00012835,2]
[396209670,1764807038288,-266.2497924,0.00012835,2]
[396209671,1764807038297,-3079.55166857,0.00012836,2]
[396209672,1764807038307,-368.2093,0.00013699,2]
[396209673,1764807038317,-476.18482373,0.00018714,2]
[396209674,1764807038327,-500.0,0.00018714,2]
[396209675,1764807038337,-500.0,0.00018714,2]
[396209676,1764807038347,-1000.0,0.00018714,2]
[396209677,1764807038356,-500.0,0.00018714,2]
[396209678,1764807038366,-1000.0,0.00018714,2]
[396209679,1764807038375,-2579.17784983,0.00018714,2]
[396209680,1764807038384,-500.0,0.00018714,2]
[396209681,1764807038392,-1000.0,0.00018714,2]
[396209682,1764807038402,-500.0,0.00018714,2]
[396209683,1764807038411,-1000.0,0.00018714,2]
[396209684,1764807038420,-500.0,0.00018714,2]
[396209685,1764807038429,-1000.0,0.00018714,2]
[396209686,1764807038438,-598.01426306,0.00018714,2]
[396209687,1764807038447,-1000.0,0.00018714,2]
[396209688,1764807038456,-1116.37455399,0.00018714,2]
[396209689,1764807038466,-560.0,0.00018742,2]
[396209690,1764807038475,-3004.12212253,0.00018906,2]
[396209691,1764807038484,-150.0,0.00019033,2]
[396209692,1764807038494,-150.0,0.00019033,2]
[396209693,1764807038503,-3000.0,0.00019178,7]
[396209694,1764807038514,-150.0,0.00019178,2]
[396209695,1764807038523,-1000.0,0.00019181,10]
[396209696,1764807038532,-244.0,0.00019181,10]
[396209697,1764807038542,-500.0,0.00019199,2]
[396209698,1764807038551,-2467.96,0.000192,2]
[396209699,1764807038561,-3820.39,0.000192,2]
[396209700,1764807038572,-151.0,0.000192,2]
[396209701,1764807038584,-3770.91,0.000192,2]
[396209702,1764807038594,-330.0,0.0001921,2]
[396209703,1764807038603,-719.43022956,0.00019262,2]
[396209704,1764807038612,-660.0,0.0001929,2]
[396209705,1764807038621,-280.4861316,0.00019306,2]
[396209706,1764807038631,-3004.12212253,0.00019323,2]
[396209707,1764807038640,-427.18861284,0.00019423,2]
[396209708,1764807038650,-768.93950312,0.00019423,2]
[396209709,1764807038659,-1367.00356109,0.00019426,2]
[396209710,1764807038669,-2135.94306421,0.00019493,2]
[396209711,1764807038679,-500.0,0.00019521,2]
[396209712,1764807038688,-686.827872,0.00019595,7]
[396209713,1764807038697,-826.58284244,0.00019595,7]
[396209714,1764807038707,-500.0,0.00019689,2]
[396209715,1764807038716,-500.0,0.00019699,2]
[396209716,1764807038725,-500.0,0.00019699,2]
[396209717,1764807038735,-500.0,0.00019699,2]
[396209718,1764807038744,-500.0,0.00019699,2]
[396209719,1764807038754,-500.0,0.00019699,2]
[396209720,1764807038764,-500.0,0.00019699,2]
[396209721,1764807038773,-500.0,0.00019699,2]
[396209722,1764807038782,-131558.58,0.000197,3]
[396209723,1764807038792,-250.0,0.00019726,2]
[396209724,1764807038801,-800.0,0.00019737,2]
[396209725,1764807038810,-376.00271353,0.00019745,2]
[396209726,1764807038818,-151.0,0.00019756,2]
[396209727,1764807038827,-1144.976933,0.0001976,5]
[396209728,1764807038836,-800.0,0.00019769,2]
[396209729,1764807038846,-800.0,0.00019772,2]
[396209730,1764807038855,-1000.0,0.0001978,5]
[396209731,1764807038864,-500.0,0.00019792,2]
[396209732,1764807038873,-800.0,0.00019796,2]
[396209733,1764807038882,-1240.1143527,0.00019798,2]
[396209734,1764807038891,-160.0,0.000198,3]
[396209735,1764807038901,-160.0,0.000198,3]
[396209736,1764807038910,-1000.0,0.000198,5]
[396209737,1764807038919,-1000.0,0.0001982,5]
[396209738,1764807038929,-500.0,0.00019836,2]
[396209739,1764807038938,-760.0,0.00019838,2]
[396209740,1764807038947,-151.0,0.0001984,2]
[396209741,1764807038956,-151.0,0.0001984,2]
[396209742,1764807038966,-151.0,0.0001984,2]
[396209743,1764807038975,-151.0,0.0001984,2]
[396209744,1764807038984,-210.506012,0.0001984,2]
[396209745,1764807038993,-210.506012,0.0001984,2]
[396209746,1764807039002,-210.506012,0.0001984,2]
[396209747,1764807039012,-210.506012,0.0001984,2]
[396209748,1764807039021,-1000.0,0.0001984,5]
[396209749,1764807039030,-800.0,0.00019854,2]
[396209750,1764807039040,-1000.0,0.0001986,5]
[396209751,1764807039050,-1000.0,0.0001988,5]
[396209752,1764807039059,-1000.0,0.000199,5]
[396209753,1764807039068,-9814.05666522,0.000199,2]
[396209754,1764807039078,-1286.973034,0.0001992,5]
[396209755,1764807039088,-1000.0,0.0001992,5]
[396209756,1764807039097,-1000.0,0.0001994,5]
[396209757,1764807039106,-1000.0,0.0001994,5]
[396209758,1764807039116,-1000.0,0.0001996,5]
[396209759,1764807039125,-1000.0,0.0001996,5]
[396209760,1764807039135,-259.19012218,0.00019962,2]
[396209761,1764807039144,-166.0,0.00019963,2]
[396209762,1764807039155,-152.0,0.00019963,2]
[396209763,1764807039164,-165.05074576,0.00019963,2]
[396209764,1764807039174,-166.0,0.00019963,2]
[396209765,1764807039184,-152.0,0.00019963,2]
[396209766,1764807039194,-152.0,0.00019963,2]
[396209767,1764807039205,-152.0,0.00019963,2]
[396209768,1764807039215,-152.0,0.00019963,2]
[396209769,1764807039226,-152.0,0.00019963,2]
[396209770,1764807039236,-152.0,0.00019963,2]
[396209771,1764807039245,-152.0,0.00019963,2]
[396209772,1764807039255,-152.0,0.00019963,2]
[396209773,1764807039264,-152.0,0.00019963,2]
[396209774,1764807039274,-152.0,0.00019963,2]
[396209775,1764807039284,-152.0,0.00019963,2]
[396209776,1764807039293,-152.0,0.00019963,2]
[396209777,1764807039303,-152.0,0.00019963,2]
[396209778,1764807039312,-152.0,0.00019963,2]
[396209779,1764807039322,-152.0,0.00019963,2]
[396209780,1764807039332,-152.0,0.00019963,2]
[396209781,1764807039342,-152.0,0.00019963,2]
[396209782,1764807039351,-152.0,0.00019963,2]
[396209783,1764807039361,-152.0,0.00019963,2]
[396209784,1764807039370,-152.0,0.00019963,2]
[396209785,1764807039379,-152.0,0.00019963,2]
[396209786,1764807039388,-152.0,0.00019963,2]
[396209787,1764807039397,-152.0,0.00019963,2]
[396209788,1764807039406,-152.0,0.00019963,2]
[396209789,1764807039415,-152.0,0.00019963,2]
[396209790,1764807039425,-152.0,0.00019963,2]
[396209791,1764807039434,-152.0,0.00019963,2]
[396209792,1764807039444,-152.0,0.00019963,2]
[396209793,1764807039453,-152.0,0.00019963,2]
[396209794,1764807039462,-152.0,0.00019963,2]
[396209795,1764807039471,-152.0,0.00019963,2]
[396209796,1764807039481,-152.0,0.00019963,2]
[396209797,1764807039490,-152.0,0.00019963,2]
[396209798,1764807039499,-152.0,0.00019963,2]
[396209799,1764807039508,-251.70422438,0.00019963,2]
[396209801,1764807039518,-151.0,0.00019979,2]
[396209802,1764807039527,-151.0,0.00019979,2]
[396209803,1764807039536,-1000.0,0.0001998,5]
[396209804,1764807039545,-1000.0,0.0001998,5]
[396209805,1764807039555,-500.0,0.00019992,2]
[396209806,1764807039564,-150.0,0.0002,2]
[396209807,1764807039576,-5487.26,0.0002,2]
[396209809,1764807039585,-756.32717635,0.0002,2]
[396209810,1764807039595,-632.9501782,0.0002,2]
[396209811,1764807039604,-15000.0,0.0002,2]
[396209812,1764807039614,-154.42460442,0.0002,2]
[396209813,1764807039623,-207.0,0.0002,10]
[396209814,1764807039632,-42592.0,0.0002,7]
[396209815,1764807039641,-180327.44630144,0.0002,14]
[396209850,1764807040245,-26087.05386198,0.0002,14]
[396210238,1764807150326,1000.0,0.00032876,120]
[396210239,1764807182490,3000.0,0.00032876,120]
[396210240,1764807200545,3000.0,0.00032876,120]
[396210241,1764807383906,29999.98,0.00032876,120]
[396210242,1764807628492,243.0084,0.00029,120]